[Event "*** Titled Tuesday Blitz"]
[Site "Chess.com"]
[Date "2020.02.04"]
[Round "7"]
[White "GMSrinath"]
[Black "DevikBronstein"]
[Result "1-0"]
[WhiteElo "2968"]
[BlackElo "2722"]
[TimeControl "180+2"]
[EndTime "10:35:35 PST"]
[Termination "GMSrinath won by resignation"]

1. e4 {[%clk 0:02:53.3]} 1... c5 {[%clk 0:03:01.2]} 2. Nf3 {[%clk 0:02:52.9]}
2... Nc6 {[%clk 0:03:02.6]} 3. Bb5 {[%clk 0:02:53.7]} 3... g6 {[%clk 0:03:03]}
4. Bxc6 {[%clk 0:02:53.8]} 4... dxc6 {[%clk 0:03:04.9]} 5. d3 {[%clk 0:02:54.9]}
5... Bg7 {[%clk 0:03:06.2]} 6. h3 {[%clk 0:02:56.2]} 6... Nf6 {[%clk 0:03:07.1]}
7. Nc3 {[%clk 0:02:55.4]} 7... Nd7 {[%clk 0:03:08]} 8. Be3 {[%clk 0:02:57]} 8...
b6 {[%clk 0:03:04.6]} 9. Qd2 {[%clk 0:02:57.9]} 9... h6 {[%clk 0:03:04.5]} 10.
O-O {[%clk 0:02:59.2]} 10... e5 {[%clk 0:03:05.4]} 11. Nh2 {[%clk 0:03:00.6]}
11... Nf8 {[%clk 0:03:06.5]} 12. f4 {[%clk 0:03:02.2]} 12... exf4 {[%clk
0:03:05.9]} 13. Rxf4 {[%clk 0:03:04.1]} 13... g5 {[%clk 0:03:06.1]} 14. Rf2
{[%clk 0:03:04.8]} 14... Ng6 {[%clk 0:03:07.3]} 15. Raf1 {[%clk 0:03:05.3]}
15... Be6 {[%clk 0:03:08.3]} 16. Ng4 {[%clk 0:03:06.8]} 16... Qc7 {[%clk
0:02:44.6]} 17. Nf6+ {[%clk 0:03:03.4]} 17... Bxf6 {[%clk 0:02:45.3]} 18. Rxf6
{[%clk 0:03:05.3]} 18... O-O-O {[%clk 0:02:46.9]} 19. a4 {[%clk 0:02:57.5]}
19... a5 {[%clk 0:02:46.9]} 20. Qe2 {[%clk 0:02:39.1]} 20... Rd7 {[%clk
0:02:41.8]} 21. Qh5 {[%clk 0:02:37.9]} 21... Qe5 {[%clk 0:02:42.2]} 22. Nd1
{[%clk 0:02:12.4]} 22... Kb7 {[%clk 0:02:40.2]} 23. Bd2 {[%clk 0:02:10.8]} 23...
Qd4+ {[%clk 0:02:37]} 24. Kh1 {[%clk 0:02:09.7]} 24... Qxa4 {[%clk 0:02:37.8]}
25. b3 {[%clk 0:01:32.8]} 25... Qa2 {[%clk 0:02:38]} 26. Bc3 {[%clk 0:01:31.7]}
26... Re8 {[%clk 0:02:32.4]} 27. Ne3 {[%clk 0:01:31.6]} 27... Nf4 {[%clk
0:01:37.5]} 28. Qf3 {[%clk 0:01:10.1]} 28... Rxd3 {[%clk 0:01:30.1]} 29. cxd3
{[%clk 0:01:02.1]} 29... Qxb3 {[%clk 0:01:31]} 30. Be5 {[%clk 0:00:44.8]} 30...
Nxd3 {[%clk 0:01:30.8]} 31. Bd6 {[%clk 0:00:46.2]} 31... a4 {[%clk 0:01:25.5]}
32. Nf5 {[%clk 0:00:41.2]} 32... a3 {[%clk 0:01:22.6]} 33. Ng7 {[%clk
0:00:31.1]} 33... Ra8 {[%clk 0:00:58]} 34. Rxe6 {[%clk 0:00:31.2]} 34... fxe6
{[%clk 0:00:59.9]} 35. Qf7+ {[%clk 0:00:32.8]} 35... Ka6 {[%clk 0:01:00.5]} 36.
Nxe6 {[%clk 0:00:34.4]} 36... Ka5 {[%clk 0:00:54.6]} 37. Qb7 {[%clk 0:00:29.8]}
37... Qxe6 {[%clk 0:00:49.6]} 38. Qxa8+ {[%clk 0:00:30.2]} 38... Kb4 {[%clk
0:00:51.1]} 39. Rb1+ {[%clk 0:00:30.7]} 39... Nb2 {[%clk 0:00:52.3]} 40. Qxc6
{[%clk 0:00:21.3]} 40... a2 {[%clk 0:00:46.4]} 41. Rxb2+ {[%clk 0:00:14.7]}
41... Kc3 {[%clk 0:00:47.1]} 42. Be5+ {[%clk 0:00:14.4]} 42... Qxe5 {[%clk
0:00:47.4]} 43. Rxa2 {[%clk 0:00:15.8]} 43... Qf4 {[%clk 0:00:46.1]} 44. Ra3+
{[%clk 0:00:13.6]} 44... Kb2 {[%clk 0:00:46.1]} 45. Rf3 {[%clk 0:00:14.3]} 45...
Qc1+ {[%clk 0:00:44.4]} 46. Kh2 {[%clk 0:00:15.7]} 1-0

[Event "*** Titled Tuesday Blitz"]
[Site "Chess.com"]
[Date "2020.02.04"]
[Round "7"]
[White "GMMatamoros"]
[Black "mitrabhaa"]
[Result "0-1"]
[WhiteElo "2425"]
[BlackElo "2582"]
[TimeControl "180+2"]
[EndTime "10:35:42 PST"]
[Termination "mitrabhaa won by resignation"]

1. Nf3 {[%clk 0:03:01.9]} 1... Nf6 {[%clk 0:02:58.9]} 2. c4 {[%clk 0:03:02.7]}
2... b6 {[%clk 0:02:56.7]} 3. g3 {[%clk 0:03:03.5]} 3... Bb7 {[%clk 0:02:56.7]}
4. Bg2 {[%clk 0:03:05]} 4... e5 {[%clk 0:02:57.2]} 5. O-O {[%clk 0:03:05.1]}
5... d6 {[%clk 0:02:58.6]} 6. Nc3 {[%clk 0:02:57.7]} 6... Nbd7 {[%clk
0:02:59.6]} 7. d4 {[%clk 0:02:55.9]} 7... Be7 {[%clk 0:02:49]} 8. Re1 {[%clk
0:02:51.6]} 8... O-O {[%clk 0:02:47.6]} 9. e4 {[%clk 0:02:52]} 9... Re8 {[%clk
0:02:48.3]} 10. h3 {[%clk 0:02:44.6]} 10... Bf8 {[%clk 0:02:46.7]} 11. d5 {[%clk
0:02:37.9]} 11... c6 {[%clk 0:02:43.7]} 12. Rb1 {[%clk 0:02:35.4]} 12... a6
{[%clk 0:02:43.9]} 13. a4 {[%clk 0:02:19.6]} 13... Qc7 {[%clk 0:02:41.9]} 14.
dxc6 {[%clk 0:02:03.6]} 14... Bxc6 {[%clk 0:02:42]} 15. Nd5 {[%clk 0:02:03.5]}
15... Qb7 {[%clk 0:02:38.5]} 16. Bg5 {[%clk 0:02:04.2]} 16... Bxd5 {[%clk
0:02:38.4]} 17. cxd5 {[%clk 0:01:59]} 17... Be7 {[%clk 0:02:38.8]} 18. b4 {[%clk
0:01:39.4]} 18... Rec8 {[%clk 0:02:29.6]} 19. Qb3 {[%clk 0:01:36.3]} 19... a5
{[%clk 0:02:10.7]} 20. bxa5 {[%clk 0:01:25.3]} 20... Rxa5 {[%clk 0:02:02]} 21.
Bd2 {[%clk 0:01:19.3]} 21... Nc5 {[%clk 0:01:49.8]} 22. Qxb6 {[%clk 0:01:15.3]}
22... Qxb6 {[%clk 0:01:46]} 23. Rxb6 {[%clk 0:01:17.2]} 23... Rxa4 {[%clk
0:01:47.9]} 24. Rc6 {[%clk 0:01:13.4]} 24... Rb8 {[%clk 0:01:44.9]} 25. Nxe5
{[%clk 0:01:05.4]} 25... dxe5 {[%clk 0:01:40.4]} 26. d6 {[%clk 0:01:05.9]} 26...
Bxd6 {[%clk 0:01:29.8]} 27. Rxd6 {[%clk 0:01:05.1]} 27... Ncxe4 {[%clk
0:01:29.3]} 28. Bxe4 {[%clk 0:00:44.4]} 28... Nxe4 {[%clk 0:01:26.5]} 29. Rd5
{[%clk 0:00:45]} 29... f6 {[%clk 0:01:22.5]} 30. Be3 {[%clk 0:00:43.2]} 30...
Rb7 {[%clk 0:01:18.2]} 31. Rc1 {[%clk 0:00:38.2]} 31... h6 {[%clk 0:01:13.6]}
32. h4 {[%clk 0:00:37.2]} 32... Kf7 {[%clk 0:01:09.2]} 33. h5 {[%clk 0:00:30.6]}
33... Ke6 {[%clk 0:01:07.4]} 34. Rd8 {[%clk 0:00:20.4]} 34... Kf5 {[%clk
0:01:06.2]} 35. Kg2 {[%clk 0:00:17.6]} 35... Ra2 {[%clk 0:01:00.3]} 36. Rc4
{[%clk 0:00:13.4]} 36... Nxf2 {[%clk 0:00:49.7]} 37. Bxf2 {[%clk 0:00:13.5]}
37... Rbb2 {[%clk 0:00:49.3]} 38. Kh3 {[%clk 0:00:03.5]} 38... Rxf2 {[%clk
0:00:48.9]} 39. g4+ {[%clk 0:00:02.9]} 39... Kg5 {[%clk 0:00:47.4]} 0-1

[Event "*** Titled Tuesday Blitz"]
[Site "Chess.com"]
[Date "2020.02.04"]
[Round "7"]
[White "ChristopherYoo"]
[Black "Gordima"]
[Result "0-1"]
[WhiteElo "2635"]
[BlackElo "2798"]
[TimeControl "180+2"]
[EndTime "10:35:44 PST"]
[Termination "Gordima won by resignation"]

1. e4 {[%clk 0:03:01.9]} 1... e5 {[%clk 0:03:01.2]} 2. Nf3 {[%clk 0:03:01.1]}
2... Nc6 {[%clk 0:03:02.8]} 3. Bb5 {[%clk 0:03:00.1]} 3... Nf6 {[%clk
0:03:04.1]} 4. d3 {[%clk 0:03:00.2]} 4... Bc5 {[%clk 0:03:04.6]} 5. c3 {[%clk
0:03:01.2]} 5... d6 {[%clk 0:03:04.4]} 6. O-O {[%clk 0:03:00.7]} 6... O-O {[%clk
0:03:04.1]} 7. Ba4 {[%clk 0:02:59.6]} 7... Ne7 {[%clk 0:03:01.7]} 8. Nbd2 {[%clk
0:02:59.8]} 8... Ng6 {[%clk 0:03:02.4]} 9. Bc2 {[%clk 0:02:53.6]} 9... a6 {[%clk
0:02:56.9]} 10. h3 {[%clk 0:02:49.7]} 10... h6 {[%clk 0:02:54.4]} 11. Re1 {[%clk
0:02:50.5]} 11... Qe7 {[%clk 0:02:52.7]} 12. Nf1 {[%clk 0:02:49.7]} 12... Nh5
{[%clk 0:02:44]} 13. Nxe5 {[%clk 0:02:33.7]} 13... Bxf2+ {[%clk 0:02:26.7]} 14.
Kxf2 {[%clk 0:02:34]} 14... Qxe5 {[%clk 0:02:27.3]} 15. Kg1 {[%clk 0:01:45.6]}
15... Nhf4 {[%clk 0:02:24.7]} 16. Qf3 {[%clk 0:01:40.8]} 16... f5 {[%clk
0:01:53.4]} 17. d4 {[%clk 0:01:21.3]} 17... fxe4 {[%clk 0:01:53.9]} 18. Bxe4
{[%clk 0:01:00.8]} 18... Qf6 {[%clk 0:01:19.8]} 19. Qg3 {[%clk 0:00:23.8]} 19...
Bd7 {[%clk 0:00:51.7]} 20. Be3 {[%clk 0:00:18.7]} 20... Rae8 {[%clk 0:00:49.7]}
21. Nd2 {[%clk 0:00:18.6]} 21... Bb5 {[%clk 0:00:32.8]} 22. c4 {[%clk
0:00:16.2]} 22... Bc6 {[%clk 0:00:26.5]} 23. d5 {[%clk 0:00:14.3]} 23... Bd7
{[%clk 0:00:26.5]} 24. Kh2 {[%clk 0:00:12.7]} 24... Qxb2 {[%clk 0:00:18.3]} 25.
Bxg6 {[%clk 0:00:10.6]} 25... Nxg6 {[%clk 0:00:19.6]} 26. Qxg6 {[%clk
0:00:08.8]} 26... Rxe3 {[%clk 0:00:20.5]} 27. Rxe3 {[%clk 0:00:08]} 27... Qxa1
{[%clk 0:00:21.8]} 28. Re7 {[%clk 0:00:06.2]} 28... Bf5 {[%clk 0:00:21.5]} 29.
Qg3 {[%clk 0:00:06.6]} 29... Rf7 {[%clk 0:00:18.6]} 30. Re8+ {[%clk 0:00:06.7]}
30... Kh7 {[%clk 0:00:18.5]} 31. Nf3 {[%clk 0:00:07.8]} 31... Qf6 {[%clk
0:00:17.1]} 32. Nh4 {[%clk 0:00:05.6]} 32... Bb1 {[%clk 0:00:15]} 33. Re1 {[%clk
0:00:05.1]} 33... Bc2 {[%clk 0:00:12.9]} 34. Re2 {[%clk 0:00:05.5]} 34... Bb1
{[%clk 0:00:08.6]} 35. Re1 {[%clk 0:00:05.6]} 35... Bf5 {[%clk 0:00:06]} 36. Rf1
{[%clk 0:00:05.9]} 36... g6 {[%clk 0:00:06.8]} 37. Qe3 {[%clk 0:00:03.3]} 37...
Qxh4 {[%clk 0:00:06.9]} 38. g4 {[%clk 0:00:03.9]} 38... Re7 {[%clk 0:00:06.2]}
39. Qd2 {[%clk 0:00:02.7]} 39... Bxg4 {[%clk 0:00:06.3]} 0-1

[Event "*** Titled Tuesday Blitz"]
[Site "Chess.com"]
[Date "2020.02.04"]
[Round "7"]
[White "Zq1"]
[Black "EugeneRougon"]
[Result "0-1"]
[WhiteElo "2547"]
[BlackElo "2732"]
[TimeControl "180+2"]
[EndTime "10:35:51 PST"]
[Termination "EugeneRougon won by resignation"]

1. d4 {[%clk 0:03:00.3]} 1... d5 {[%clk 0:02:58]} 2. c4 {[%clk 0:03:00.9]} 2...
c6 {[%clk 0:02:59.2]} 3. cxd5 {[%clk 0:03:01.8]} 3... cxd5 {[%clk 0:03:01.1]} 4.
Bg5 {[%clk 0:03:02.4]} 4... Nf6 {[%clk 0:02:59.3]} 5. Bxf6 {[%clk 0:03:03]} 5...
gxf6 {[%clk 0:02:56.3]} 6. Nc3 {[%clk 0:03:04]} 6... f5 {[%clk 0:02:39.9]} 7. g3
{[%clk 0:03:04.6]} 7... e6 {[%clk 0:02:38.3]} 8. e3 {[%clk 0:03:03.6]} 8... Nc6
{[%clk 0:02:28.6]} 9. Bg2 {[%clk 0:03:03.8]} 9... Bg7 {[%clk 0:02:11.2]} 10.
Nge2 {[%clk 0:03:04.5]} 10... O-O {[%clk 0:02:12.4]} 11. O-O {[%clk 0:03:04.7]}
11... b6 {[%clk 0:02:11.8]} 12. a3 {[%clk 0:03:04.1]} 12... Ba6 {[%clk
0:02:08.1]} 13. b4 {[%clk 0:03:03.7]} 13... Bc4 {[%clk 0:02:06.2]} 14. Qd2
{[%clk 0:03:04.4]} 14... b5 {[%clk 0:02:03.1]} 15. Rfc1 {[%clk 0:02:37.8]} 15...
a5 {[%clk 0:02:03.7]} 16. Rab1 {[%clk 0:02:37.9]} 16... Qd6 {[%clk 0:01:52.7]}
17. a4 {[%clk 0:02:16.3]} 17... axb4 {[%clk 0:01:39.2]} 18. Nxb5 {[%clk
0:02:16.4]} 18... Qd7 {[%clk 0:01:40]} 19. Ra1 {[%clk 0:02:07.7]} 19... Na5
{[%clk 0:01:38.2]} 20. Qxb4 {[%clk 0:01:55.2]} 20... Bxe2 {[%clk 0:01:37.5]} 21.
Rc7 {[%clk 0:01:48.9]} 21... Qd8 {[%clk 0:01:36.6]} 22. Rac1 {[%clk 0:01:45.4]}
22... Bc4 {[%clk 0:01:02.4]} 23. Rc3 {[%clk 0:01:23.2]} 23... Re8 {[%clk
0:01:01]} 24. Rc5 {[%clk 0:01:14.5]} 24... Bf8 {[%clk 0:00:57.1]} 25. Qb2 {[%clk
0:00:56.1]} 25... Bxc5 {[%clk 0:00:48.4]} 26. dxc5 {[%clk 0:00:57]} 26... Rb8
{[%clk 0:00:49]} 27. Qd2 {[%clk 0:00:43.3]} 27... Bxb5 {[%clk 0:00:43.8]} 28.
axb5 {[%clk 0:00:43.4]} 28... Rxb5 {[%clk 0:00:45]} 29. Bf1 {[%clk 0:00:40.7]}
29... Nc4 {[%clk 0:00:33.9]} 30. Qd4 {[%clk 0:00:39.9]} 30... Qe7 {[%clk
0:00:24.2]} 31. Bxc4 {[%clk 0:00:26]} 31... dxc4 {[%clk 0:00:25.6]} 32. Rxc4
{[%clk 0:00:27]} 32... Rc8 {[%clk 0:00:25.5]} 33. c6 {[%clk 0:00:24.9]} 33...
Rd5 {[%clk 0:00:24.5]} 34. Qf4 {[%clk 0:00:23]} 34... Qf6 {[%clk 0:00:21]} 35.
e4 {[%clk 0:00:21.5]} 35... Re5 {[%clk 0:00:14.9]} 36. c7 {[%clk 0:00:18.1]}
36... Kg7 {[%clk 0:00:15.2]} 37. Qd2 {[%clk 0:00:10.6]} 37... Rxe4 {[%clk
0:00:13.7]} 38. Rxe4 {[%clk 0:00:10.5]} 38... fxe4 {[%clk 0:00:15.6]} 39. Qd7
{[%clk 0:00:11.3]} 39... Qa1+ {[%clk 0:00:15.7]} 40. Kg2 {[%clk 0:00:11.6]}
40... Qa8 {[%clk 0:00:15.9]} 41. Qd4+ {[%clk 0:00:12.3]} 41... Kg8 {[%clk
0:00:15.4]} 42. Qe5 {[%clk 0:00:10.7]} 42... Qd5 {[%clk 0:00:14.2]} 0-1

[Event "*** Titled Tuesday Blitz"]
[Site "Chess.com"]
[Date "2020.02.04"]
[Round "7"]
[White "gurelediz"]
[Black "SHIVACalypso"]
[Result "1-0"]
[WhiteElo "2505"]
[BlackElo "2209"]
[TimeControl "180+2"]
[EndTime "10:35:55 PST"]
[Termination "gurelediz won by resignation"]

1. e4 {[%clk 0:03:00.9]} 1... e6 {[%clk 0:03:01.1]} 2. d4 {[%clk 0:02:53.5]}
2... d5 {[%clk 0:03:01.8]} 3. Nd2 {[%clk 0:02:54.1]} 3... Nf6 {[%clk 0:03:02.8]}
4. e5 {[%clk 0:02:54.6]} 4... Nfd7 {[%clk 0:03:03.9]} 5. Bd3 {[%clk 0:02:56.2]}
5... c5 {[%clk 0:03:04.3]} 6. c3 {[%clk 0:02:57.8]} 6... Nc6 {[%clk 0:03:05.9]}
7. Ne2 {[%clk 0:02:58.8]} 7... cxd4 {[%clk 0:03:06.7]} 8. cxd4 {[%clk
0:02:59.4]} 8... f6 {[%clk 0:03:08.3]} 9. exf6 {[%clk 0:03:00.8]} 9... Nxf6
{[%clk 0:03:10.2]} 10. O-O {[%clk 0:03:00.7]} 10... Bd6 {[%clk 0:03:10.9]} 11.
Nf3 {[%clk 0:02:58.9]} 11... O-O {[%clk 0:03:11.8]} 12. Bf4 {[%clk 0:02:58.9]}
12... Bxf4 {[%clk 0:03:13.1]} 13. Nxf4 {[%clk 0:02:59.8]} 13... Ne4 {[%clk
0:03:14.3]} 14. Qc1 {[%clk 0:03:01.1]} 14... Qf6 {[%clk 0:03:15.2]} 15. Ne2
{[%clk 0:02:48.1]} 15... Nb4 {[%clk 0:03:13.9]} 16. Bb1 {[%clk 0:02:35.1]} 16...
Bd7 {[%clk 0:03:12.8]} 17. Ne5 {[%clk 0:02:30.7]} 17... Bb5 {[%clk 0:03:09]} 18.
Qe3 {[%clk 0:02:29.1]} 18... Qg5 {[%clk 0:02:54.9]} 19. f4 {[%clk 0:02:17.6]}
19... Qe7 {[%clk 0:02:12.3]} 20. Bxe4 {[%clk 0:02:08.9]} 20... dxe4 {[%clk
0:02:14.2]} 21. Qxe4 {[%clk 0:02:09.5]} 21... Rad8 {[%clk 0:02:05]} 22. a3
{[%clk 0:01:59.3]} 22... Nc6 {[%clk 0:01:49.5]} 23. Rad1 {[%clk 0:01:57.6]}
23... Qd6 {[%clk 0:01:24.1]} 24. Nxc6 {[%clk 0:01:48]} 24... Bxc6 {[%clk
0:01:26]} 25. Qe5 {[%clk 0:01:47.8]} 25... Qxe5 {[%clk 0:01:20.2]} 26. fxe5
{[%clk 0:01:33.2]} 26... Rxf1+ {[%clk 0:01:18.5]} 27. Kxf1 {[%clk 0:01:33]}
27... Rf8+ {[%clk 0:01:13.3]} 28. Kg1 {[%clk 0:01:31.8]} 28... Bb5 {[%clk
0:01:02.3]} 29. Nc3 {[%clk 0:01:30.1]} 29... Bc4 {[%clk 0:01:03.2]} 30. Ne4
{[%clk 0:01:20.8]} 30... Be2 {[%clk 0:00:56.7]} 31. Re1 {[%clk 0:01:18.3]} 31...
Bd3 {[%clk 0:00:57.7]} 32. Nc5 {[%clk 0:01:16.8]} 32... Bf5 {[%clk 0:00:54.1]}
33. Nxb7 {[%clk 0:01:05.2]} 33... Rb8 {[%clk 0:00:52.7]} 34. Nd6 {[%clk
0:01:01.2]} 34... Rxb2 {[%clk 0:00:47]} 35. Nxf5 {[%clk 0:01:00]} 35... exf5
{[%clk 0:00:48.9]} 36. d5 {[%clk 0:01:01.2]} 36... Rd2 {[%clk 0:00:48.7]} 37. d6
{[%clk 0:00:54.2]} 37... Kf7 {[%clk 0:00:49.4]} 38. e6+ {[%clk 0:00:54.1]} 38...
Ke8 {[%clk 0:00:49.7]} 39. d7+ {[%clk 0:00:52.2]} 39... Ke7 {[%clk 0:00:51.6]}
40. Re5 {[%clk 0:00:46.5]} 40... g6 {[%clk 0:00:50.3]} 41. h3 {[%clk 0:00:41.8]}
41... h6 {[%clk 0:00:49.1]} 42. g4 {[%clk 0:00:33.7]} 42... fxg4 {[%clk
0:00:47.8]} 43. hxg4 {[%clk 0:00:33]} 43... g5 {[%clk 0:00:48.4]} 44. Kf1 {[%clk
0:00:29.4]} 44... Rd1+ {[%clk 0:00:47.9]} 45. Ke2 {[%clk 0:00:29.9]} 45... Rd4
{[%clk 0:00:49.3]} 46. Ke3 {[%clk 0:00:30.4]} 46... Rd1 {[%clk 0:00:49.8]} 47.
Ke4 {[%clk 0:00:31.4]} 47... Re1+ {[%clk 0:00:44.9]} 48. Kf5 {[%clk 0:00:31.9]}
48... Rf1+ {[%clk 0:00:42.2]} 49. Kg6 {[%clk 0:00:33.1]} 49... Rf6+ {[%clk
0:00:40.9]} 50. Kg7 {[%clk 0:00:34.3]} 50... Rf8 {[%clk 0:00:41.3]} 51. Kxh6
{[%clk 0:00:31]} 51... Kf6 {[%clk 0:00:39.3]} 52. Rf5+ {[%clk 0:00:30.3]} 1-0

[Event "*** Titled Tuesday Blitz"]
[Site "Chess.com"]
[Date "2020.02.04"]
[Round "7"]
[White "DonPreuss"]
[Black "Ginzburg_Yakov"]
[Result "1-0"]
[WhiteElo "2208"]
[BlackElo "2515"]
[TimeControl "180+2"]
[EndTime "10:35:58 PST"]
[Termination "DonPreuss won by resignation"]

1. d4 {[%clk 0:03:01.9]} 1... d5 {[%clk 0:03:00.3]} 2. e4 {[%clk 0:03:03]} 2...
c6 {[%clk 0:02:59.4]} 3. Nc3 {[%clk 0:03:04.2]} 3... dxe4 {[%clk 0:03:00.1]} 4.
f3 {[%clk 0:03:05.3]} 4... e3 {[%clk 0:03:00.4]} 5. Bxe3 {[%clk 0:03:05.7]} 5...
Nf6 {[%clk 0:03:01.5]} 6. Bd3 {[%clk 0:03:05.4]} 6... e6 {[%clk 0:03:01.5]} 7.
Nge2 {[%clk 0:03:06.2]} 7... Be7 {[%clk 0:03:00.7]} 8. O-O {[%clk 0:03:07]} 8...
O-O {[%clk 0:03:01.7]} 9. Qe1 {[%clk 0:03:08.2]} 9... Nbd7 {[%clk 0:03:01.8]}
10. Qh4 {[%clk 0:03:09.1]} 10... c5 {[%clk 0:02:59.7]} 11. Bg5 {[%clk
0:03:08.6]} 11... Re8 {[%clk 0:02:42.2]} 12. Ng3 {[%clk 0:02:22.6]} 12... cxd4
{[%clk 0:02:24.5]} 13. Nce4 {[%clk 0:02:08.3]} 13... Nxe4 {[%clk 0:02:13.7]} 14.
Nxe4 {[%clk 0:02:08.9]} 14... Nf8 {[%clk 0:02:11.6]} 15. f4 {[%clk 0:01:28.9]}
15... h6 {[%clk 0:01:55.4]} 16. Rf3 {[%clk 0:01:16.8]} 16... f5 {[%clk
0:01:38.1]} 17. Rg3 {[%clk 0:00:37.9]} 17... fxe4 {[%clk 0:01:34.8]} 18. Bxe4
{[%clk 0:00:35.8]} 18... e5 {[%clk 0:01:25.2]} 19. Qh5 {[%clk 0:00:21.2]} 19...
hxg5 {[%clk 0:01:09.2]} 20. fxg5 {[%clk 0:00:15.7]} 20... d3 {[%clk 0:00:57.6]}
21. Rf1 {[%clk 0:00:15.4]} 21... Be6 {[%clk 0:00:51.9]} 22. Rxf8+ {[%clk
0:00:11.2]} 22... Kxf8 {[%clk 0:00:40.2]} 23. Qh8+ {[%clk 0:00:07.8]} 23... Bg8
{[%clk 0:00:41.3]} 24. Rf3+ {[%clk 0:00:09]} 24... Bf6 {[%clk 0:00:41.9]} 25.
gxf6 {[%clk 0:00:10.3]} 25... Re7 {[%clk 0:00:10.5]} 26. fxg7+ {[%clk 0:00:09]}
26... Ke8 {[%clk 0:00:10.9]} 27. Qxg8+ {[%clk 0:00:04.8]} 27... Kd7 {[%clk
0:00:12.2]} 28. Rxd3+ {[%clk 0:00:06.4]} 28... Kc7 {[%clk 0:00:12.4]} 29. Rc3+
{[%clk 0:00:04.6]} 29... Kb6 {[%clk 0:00:12.9]} 30. Rb3+ {[%clk 0:00:04.2]}
30... Kc5 {[%clk 0:00:13.7]} 31. Qxd8 {[%clk 0:00:05.5]} 31... Rxd8 {[%clk
0:00:14]} 32. Rg3 {[%clk 0:00:07.4]} 32... Rf7 {[%clk 0:00:15.3]} 33. h4 {[%clk
0:00:05.9]} 33... Rg8 {[%clk 0:00:16]} 34. Rg5 {[%clk 0:00:05.1]} 34... Rgxg7
{[%clk 0:00:16.8]} 35. Rxg7 {[%clk 0:00:06]} 35... Rxg7 {[%clk 0:00:18.2]} 36.
h5 {[%clk 0:00:07.5]} 36... Kd4 {[%clk 0:00:20]} 37. h6 {[%clk 0:00:08.1]} 37...
Rg4 {[%clk 0:00:17.2]} 38. h7 {[%clk 0:00:09.1]} 38... Rh4 {[%clk 0:00:18.6]}
39. Bf5 {[%clk 0:00:10.1]} 39... e4 {[%clk 0:00:19.2]} 40. Kf2 {[%clk
0:00:10.4]} 40... e3+ {[%clk 0:00:20.4]} 41. Ke2 {[%clk 0:00:11.4]} 41... Rh2
{[%clk 0:00:20.4]} 42. Bh3 {[%clk 0:00:11.8]} 1-0

[Event "*** Titled Tuesday Blitz"]
[Site "Chess.com"]
[Date "2020.02.04"]
[Round "7"]
[White "vlad_Sid"]
[Black "VladDobrov"]
[Result "1-0"]
[WhiteElo "2710"]
[BlackElo "2904"]
[TimeControl "180+2"]
[EndTime "10:36:03 PST"]
[Termination "vlad_Sid won by resignation"]

1. c4 {[%clk 0:02:42]} 1... g6 {[%clk 0:02:58.3]} 2. g3 {[%clk 0:02:42.8]} 2...
Bg7 {[%clk 0:02:59.6]} 3. Bg2 {[%clk 0:02:44.2]} 3... f5 {[%clk 0:03:01.1]} 4.
Nc3 {[%clk 0:02:45.8]} 4... Nf6 {[%clk 0:03:02.1]} 5. Nf3 {[%clk 0:02:47.3]}
5... O-O {[%clk 0:03:02.6]} 6. O-O {[%clk 0:02:48.8]} 6... d6 {[%clk 0:03:03.1]}
7. d3 {[%clk 0:02:49.6]} 7... e5 {[%clk 0:03:03.6]} 8. Rb1 {[%clk 0:02:50.7]}
8... a5 {[%clk 0:03:04.3]} 9. a3 {[%clk 0:02:51.6]} 9... c6 {[%clk 0:03:04.8]}
10. b4 {[%clk 0:02:52]} 10... axb4 {[%clk 0:03:06.7]} 11. axb4 {[%clk
0:02:53.9]} 11... h6 {[%clk 0:03:05.8]} 12. Qc2 {[%clk 0:02:53.5]} 12... g5
{[%clk 0:03:06.6]} 13. b5 {[%clk 0:02:50.3]} 13... f4 {[%clk 0:03:06.9]} 14.
bxc6 {[%clk 0:02:50.3]} 14... Nxc6 {[%clk 0:03:04.6]} 15. Bb2 {[%clk 0:02:34.1]}
15... Bf5 {[%clk 0:03:02.5]} 16. Nd2 {[%clk 0:02:31.8]} 16... Nd4 {[%clk
0:03:02.3]} 17. Qd1 {[%clk 0:02:32.3]} 17... Kh8 {[%clk 0:02:59.6]} 18. Bxb7
{[%clk 0:02:28]} 18... Rb8 {[%clk 0:03:00.1]} 19. Bg2 {[%clk 0:02:27.5]} 19...
g4 {[%clk 0:02:58.1]} 20. Nd5 {[%clk 0:02:22.8]} 20... f3 {[%clk 0:02:55.8]} 21.
exf3 {[%clk 0:01:53.9]} 21... Nxd5 {[%clk 0:02:54.9]} 22. Bxd4 {[%clk
0:01:52.8]} 22... Bxd3 {[%clk 0:02:49]} 23. Rxb8 {[%clk 0:01:51.5]} 23... Qxb8
{[%clk 0:02:50.9]} 24. cxd5 {[%clk 0:01:52.6]} 24... Bxf1 {[%clk 0:02:50.2]} 25.
Bxf1 {[%clk 0:01:49]} 25... exd4 {[%clk 0:02:49.4]} 26. fxg4 {[%clk 0:01:50.9]}
26... Qa7 {[%clk 0:02:47.7]} 27. Bd3 {[%clk 0:01:50.1]} 27... Qf7 {[%clk
0:02:45]} 28. Nf1 {[%clk 0:01:49.7]} 28... Qxf2+ {[%clk 0:02:44]} 29. Kh1 {[%clk
0:01:50]} 29... Re8 {[%clk 0:02:07.7]} 30. Bb5 {[%clk 0:01:44.9]} 30... Re1
{[%clk 0:02:01.6]} 31. Qd3 {[%clk 0:01:45.1]} 31... Be5 {[%clk 0:02:00]} 32. Bc4
{[%clk 0:01:38.5]} 32... Kg7 {[%clk 0:01:59.9]} 33. Bb5 {[%clk 0:01:39.5]} 33...
Kf6 {[%clk 0:01:16.3]} 34. Ba6 {[%clk 0:01:39.1]} 34... Kg5 {[%clk 0:01:05.2]}
35. Bc4 {[%clk 0:01:35.6]} 35... Kf6 {[%clk 0:00:42.2]} 36. Bb5 {[%clk
0:01:35.1]} 36... Rc1 {[%clk 0:00:35.3]} 37. Ba6 {[%clk 0:01:31]} 37... Kg5
{[%clk 0:00:34.2]} 38. Bb5 {[%clk 0:01:31.3]} 38... Kf6 {[%clk 0:00:31.5]} 39.
Ba6 {[%clk 0:01:31]} 39... Kg7 {[%clk 0:00:32.7]} 40. Bb5 {[%clk 0:01:31.6]}
40... Kf8 {[%clk 0:00:32.7]} 41. Ba6 {[%clk 0:01:31.3]} 41... Ke7 {[%clk
0:00:33.8]} 42. Bb5 {[%clk 0:01:31.2]} 42... Kd8 {[%clk 0:00:35]} 43. Ba6 {[%clk
0:01:31.3]} 43... Kc7 {[%clk 0:00:36.3]} 44. Qh7+ {[%clk 0:01:29.4]} 44... Kd8
{[%clk 0:00:33.4]} 45. Qg8+ {[%clk 0:01:29.2]} 45... Ke7 {[%clk 0:00:33.8]} 46.
Qe6+ {[%clk 0:01:29.6]} 46... Kf8 {[%clk 0:00:35]} 47. Qxh6+ {[%clk 0:01:30.3]}
47... Kf7 {[%clk 0:00:32.1]} 48. Qxc1 {[%clk 0:01:32.2]} 48... Qf3+ {[%clk
0:00:28.9]} 49. Kg1 {[%clk 0:01:33.2]} 49... d3 {[%clk 0:00:28.1]} 50. h4 {[%clk
0:01:24.3]} 50... Bxg3 {[%clk 0:00:24.9]} 51. Qe3 {[%clk 0:01:03.2]} 51... Qxe3+
{[%clk 0:00:16.2]} 52. Nxe3 {[%clk 0:01:05.1]} 52... Bxh4 {[%clk 0:00:16.8]} 53.
Bxd3 {[%clk 0:01:04.8]} 1-0